fUST/lending_fUST_20240807
["ID","MTS","AMOUNT","RATE_DAILY","PERIOD"]
[334389192,1723021847125,-289.103468,0.00032876,7]
[334389193,1723021847135,-500.75935883,0.00032876,14]
[334389194,1723021847144,-924.7,0.00032876,14]
[334389195,1723021847154,-662.24,0.00032876,14]
[334389196,1723021847164,-3896.16,0.00032876,14]
[334389197,1723021847173,-500.0,0.00032876,14]
[334389198,1723021847183,-542.21030974,0.00032876,14]
[334389199,1723021847192,-6009.15,0.00032876,14]
[334389200,1723021847201,-500.0,0.00032876,14]
[334389201,1723021847210,-500.0,0.00032876,14]
[334389202,1723021847220,-500.0,0.00032876,14]
[334389203,1723021847230,-500.0,0.00032876,14]
[334389204,1723021847240,-500.0,0.00032876,14]
[334389205,1723021847250,-500.0,0.00032876,14]
[334389206,1723021847260,-363.70863995,0.00032876,14]
[334389207,1723021847270,-500.0,0.00032876,14]
[334389208,1723021847279,-500.0,0.00032876,14]
[334389209,1723021847296,-671.11,0.00032876,14]
[334389210,1723021847309,-500.0,0.00032876,14]
[334389211,1723021847320,-500.0,0.00032876,14]
[334389212,1723021847330,-500.0,0.00032876,14]
[334389213,1723021847339,-953.96,0.00032876,14]
[334389214,1723021847349,-500.0,0.00032876,14]
[334389215,1723021847359,-500.0,0.00032876,14]
[334389216,1723021847368,-500.0,0.00032876,14]
[334389217,1723021847378,-516.24800481,0.00032876,14]
[334389218,1723021847388,-662.54,0.00032876,14]
[334389219,1723021847398,-2319.12,0.00032876,14]
[334389220,1723021847408,-500.0,0.00032876,14]
[334389221,1723021847418,-578.7,0.00032876,14]
[334389222,1723021847427,-500.0,0.00032876,14]
[334389223,1723021847437,-500.0,0.00032876,14]
[334389224,1723021847447,-500.92205333,0.00032876,14]
[334389225,1723021847458,-1373.61,0.00032876,14]
[334389226,1723021847467,-500.0,0.00032876,14]
[334389227,1723021847477,-500.0,0.00032876,14]
[334389228,1723021847487,-625.788532,0.00032876,7]
[334389229,1723021847497,-625.788532,0.00032876,7]
[334389230,1723021847507,-6698.77,0.00032876,14]
[334389231,1723021847516,-625.788532,0.00032876,7]
[334389232,1723021847526,-1703.3,0.00032876,14]
[334389233,1723021847539,-6001.15,0.00032876,14]
[334389234,1723021847548,-822.27,0.00032876,14]
[334389235,1723021847558,-625.788532,0.00032876,7]
[334389236,1723021847567,-625.788532,0.00032876,7]
[334389237,1723021847576,-625.788524,0.00032876,7]
[334389238,1723021847587,-500.0,0.00032876,14]
[334389239,1723021847597,-18228.68507634,0.00032876,14]
[334389240,1723021847854,-151.0,0.00032479,7]
[334389241,1723021847863,-3916.05367133,0.00032876,14]
[334389242,1723021847874,-840.94125233,0.00032876,14]
[334389243,1723021847884,-308.79945367,0.00032876,14]
[334389244,1723021848133,-151.0,0.0003248,7]
[334389245,1723021848143,-151.0,0.000325,7]
[334389246,1723021848152,-154.85293282,0.00032727,2]
[334389247,1723021848161,-45.52676258,0.000328,7]
[334389248,1723021848178,-151.0,0.00029673,7]
[334389249,1723021848187,-105.47323742,0.000328,7]
[334389250,1723021848197,-151.0,0.00032875,7]
[334389251,1723021848207,-907.27054633,0.00032876,14]
[334389252,1723021848217,-151.0,0.00032876,7]
[334389253,1723021848227,-151.0,0.00032876,7]
[334389254,1723021848236,-500.0,0.00032876,14]
[334389255,1723021848246,-151.0,0.00032876,7]
[334389256,1723021848256,-2458.53,0.00032876,14]
[334389257,1723021848265,-593.75,0.00032876,14]
[334389258,1723021848276,-500.0,0.00032876,14]
[334389259,1723021848288,-500.0,0.00032876,14]
[334389260,1723021848298,-223.489582,0.00032876,7]
[334389261,1723021848309,-514.60763727,0.00032876,14]
[334389262,1723021848319,-525.4,0.00032876,14]
[334389263,1723021848329,-1369.95,0.00032876,14]
[334389264,1723021848339,-1991.97,0.00032876,14]
[334389265,1723021848349,-7498.13,0.00032876,14]
[334389266,1723021848359,-845.89,0.00032876,14]
[334389267,1723021848370,-689.01,0.00032876,14]
[334389268,1723021848379,-1784.11,0.00032876,14]
[334389269,1723021848389,-4782.14,0.00032876,14]
[334389270,1723021848399,-500.0,0.00032876,14]
[334389271,1723021848410,-240.691873,0.00032876,7]
[334389272,1723021848420,-328.38998597,0.00032876,14]
[334389273,1723021848430,-302.274094,0.00032876,7]
[334389274,1723021848439,-500.0,0.00032876,14]
[334389275,1723021848450,-302.274094,0.00032876,7]
[334389276,1723021848460,-500.0,0.00032876,14]
[334389277,1723021848471,-240.691873,0.00032876,7]
[334389278,1723021848480,-3035.64,0.00032876,14]
[334389279,1723021848491,-302.274094,0.00032876,7]
[334389280,1723021848500,-302.274086,0.00032876,7]
[334389281,1723021848511,-2314.75,0.00032876,14]
[334389282,1723021848521,-500.64102182,0.00032876,14]
[334389283,1723021848535,-500.0,0.00032876,14]
[334389284,1723021848545,-500.0,0.00032876,14]
[334389285,1723021848555,-735.76,0.00032876,14]
[334389286,1723021848565,-500.0,0.00032876,14]
[334389287,1723021848575,-500.0,0.00032876,14]
[334389288,1723021848585,-878.895708,0.00032876,7]
[334389289,1723021848601,-542.15,0.00032876,14]
[334389290,1723021848611,-878.895708,0.00032876,7]
[334389291,1723021848621,-509.59,0.00032876,14]
[334389292,1723021848631,-591.76,0.00032876,14]
[334389293,1723021848641,-878.895708,0.00032876,7]
[334389294,1723021848651,-878.895708,0.00032876,7]
[334389295,1723021848662,-500.0,0.00032876,14]
[334389296,1723021848672,-20586.8,0.00032876,14]
[334389297,1723021848682,-1281.232833,0.00032876,7]
[334389298,1723021848691,-3312.64,0.00032876,14]
[334389299,1723021848701,-1281.232833,0.00032876,7]
[334389300,1723021848711,-1281.232833,0.00032876,7]
[334389301,1723021848721,-500.0,0.00032876,14]
[334389302,1723021848730,-500.0,0.00032876,14]
[334389303,1723021848740,-2357.53,0.00032876,14]
[334389304,1723021848750,-1281.232833,0.00032876,7]
[334389305,1723021848760,-1281.232833,0.00032876,7]
[334389306,1723021848769,-1358.54,0.00032876,14]
[334389307,1723021848779,-501.72902883,0.00032876,14]
[334389308,1723021848799,-1281.232825,0.00032876,7]
[334389309,1723021848809,-11531.92,0.00032876,14]
[334389310,1723021848818,-500.0,0.00032876,14]
[334389311,1723021848828,-500.0,0.00032876,14]
[334389312,1723021848838,-500.0,0.00032876,14]
[334389313,1723021848848,-500.0,0.00032876,14]
[334389314,1723021848858,-500.0,0.00032876,14]
[334389315,1723021848867,-914.68,0.00032876,14]
[334389316,1723021848877,-500.0,0.00032876,14]
[334389317,1723021848886,-500.44,0.00032876,14]
[334389318,1723021848896,-2564.96,0.00032876,14]
[334389319,1723021848906,-500.0,0.00032876,14]
[334389320,1723021848916,-1406.95,0.00032876,14]
[334389321,1723021848925,-11053.34,0.00032876,14]
[334389322,1723021848935,-500.0,0.00032876,14]
[334389323,1723021848945,-18555.69,0.00032876,14]
[334389324,1723021848956,-500.0,0.00032876,14]
[334389325,1723021848965,-500.0,0.00032876,14]
[334389326,1723021848975,-773.22,0.00032876,14]
[334389327,1723021848984,-500.0,0.00032876,14]
[334389328,1723021848994,-1082.66,0.00032876,14]
[334389329,1723021849004,-659.79,0.00032876,14]
[334389330,1723021849014,-659.79,0.00032876,14]
[334389331,1723021849024,-659.79,0.00032876,14]
[334389332,1723021849034,-659.79,0.00032876,14]
[334389333,1723021849043,-500.0,0.00032876,14]
[334389334,1723021849053,-659.79,0.00032876,14]
[334389335,1723021849062,-659.79,0.00032876,14]
[334389336,1723021849072,-509.0689251,0.00032876,14]
[334389337,1723021849081,-659.79,0.00032876,14]
[334389338,1723021849091,-659.79,0.00032876,14]
[334389339,1723021849101,-3173.8,0.00032876,14]
[334389340,1723021849111,-659.79,0.00032876,14]
[334389341,1723021849120,-500.0,0.00032876,14]
[334389342,1723021849130,-659.79,0.00032876,14]
[334389343,1723021849139,-659.79,0.00032876,14]
[334389344,1723021849149,-2925.87,0.00032876,14]
[334389345,1723021849158,-500.0,0.00032876,14]
[334389346,1723021849168,-659.79,0.00032876,14]
[334389347,1723021849177,-659.79,0.00032876,14]
[334389348,1723021849187,-3430.97,0.00032876,14]
[334389349,1723021849198,-659.79,0.00032876,14]
[334389350,1723021849208,-659.79,0.00032876,14]
[334389351,1723021849218,-500.0,0.00032876,14]
[334389352,1723021849227,-659.79,0.00032876,14]
[334389353,1723021849237,-659.79,0.00032876,14]
[334389354,1723021849247,-1342.2,0.00032876,14]
[334389355,1723021849257,-659.79,0.00032876,14]
[334389356,1723021849267,-4135.42,0.00032876,14]
[334389357,1723021849276,-659.79,0.00032876,14]
[334389358,1723021849287,-659.79,0.00032876,14]
[334389359,1723021849296,-659.79,0.00032876,14]
[334389360,1723021849306,-500.0,0.00032876,14]
[334389361,1723021849317,-659.79,0.00032876,14]
[334389362,1723021849326,-659.79,0.00032876,14]
[334389363,1723021849336,-659.82339103,0.00032876,14]
[334389364,1723021849346,-500.0,0.00032876,14]
[334389365,1723021849355,-501.91669661,0.00032876,14]
[334389366,1723021849366,-501.72868805,0.00032876,14]
[334389367,1723021849376,-500.0,0.00032876,14]
[334389368,1723021849387,-500.0,0.00032876,14]
[334389369,1723021849397,-2428.62,0.00032876,14]
[334389370,1723021849408,-500.0,0.00032876,14]
[334389371,1723021849417,-500.0,0.00032876,14]
[334389372,1723021849427,-598.3,0.00032876,14]
[334389373,1723021849437,-500.0,0.00032876,14]
[334389374,1723021849447,-728.87,0.00032876,14]
[334389375,1723021849458,-500.0,0.00032876,14]
[334389376,1723021849468,-1363.400003,0.00032876,7]
[334389377,1723021849478,-1709.17,0.00032876,14]
[334389378,1723021849488,-500.0,0.00032876,14]
[334389379,1723021849498,-500.0,0.00032876,14]
[334389380,1723021849507,-1363.399995,0.00032876,7]
[334389381,1723021849517,-500.0,0.00032876,14]
[334389382,1723021849527,-11337.69,0.00032876,14]
[334389383,1723021849539,-1198.55,0.00032876,14]
[334389384,1723021849550,-2327.18,0.00032876,14]
[334389385,1723021849560,-500.0,0.00032876,14]
[334389386,1723021849569,-1634.0,0.00032876,14]
[334389387,1723021849579,-2502.07,0.00032876,14]
[334389388,1723021849590,-699.99,0.00032876,14]
[334389389,1723021849600,-500.0,0.00032876,14]
[334389390,1723021849611,-500.0,0.00032876,14]
[334389391,1723021849621,-500.0,0.00032876,14]
[334389392,1723021849631,-1701.3,0.00032876,14]
[334389393,1723021849640,-927.78,0.00032876,14]
[334389394,1723021849650,-428.53322879,0.00032876,14]
[334389395,1723021849659,-1731.84,0.00032876,14]
[334389396,1723021849669,-500.0,0.00032876,14]
[334389397,1723021849679,-883.95,0.00032876,14]
[334389398,1723021849689,-742.94,0.00032876,14]
[334389399,1723021849699,-1595.06,0.00032876,14]
[334389400,1723021849708,-512.58577606,0.00032876,14]
[334389401,1723021849718,-1449.43,0.00032876,14]
[334389402,1723021849727,-5512.96,0.00032876,14]
[334389403,1723021849737,-500.0,0.00032876,14]
[334389404,1723021849747,-639.61374036,0.00032876,14]
[334389405,1723021849757,-1376.42,0.00032876,14]
[334389406,1723021849766,-559.79,0.00032876,14]
[334389407,1723021849775,-500.0,0.00032876,14]
[334389408,1723021849788,-6785.73,0.00032876,14]
[334389409,1723021849798,-501.05477104,0.00032876,14]
[334389410,1723021849808,-500.0,0.00032876,14]
[334389411,1723021849819,-151.0,0.00032876,7]
[334389412,1723021849829,-151.0,0.00032876,7]
[334389413,1723021849839,-151.0,0.00032876,7]
[334389414,1723021849848,-3000.0,0.0003288,13]
[334389415,1723021849858,-1411.0,0.00032881,2]
[334389416,1723021849868,-151.0,0.0003289,7]
[334389417,1723021849877,-3000.0,0.0003289,13]
[334389418,1723021849887,-167.32,0.000329,30]
[334389419,1723021849896,-3000.0,0.000329,13]
[334389420,1723021849907,-3000.0,0.0003291,13]
[334389421,1723021849917,-3000.0,0.0003292,13]
[334389422,1723021849926,-151.0,0.0003293,7]
[334389423,1723021849936,-3000.0,0.0003293,14]
[334389424,1723021849946,-3000.0,0.0003294,14]
[334389425,1723021849956,-2778.66465494,0.00032941,2]
[334389426,1723021849966,-3000.0,0.0003295,14]
[334389427,1723021849976,-3000.0,0.0003296,14]
[334389428,1723021849985,-3000.0,0.0003297,14]
[334389429,1723021849995,-3000.0,0.0003298,14]
[334389430,1723021850004,-3000.0,0.0003299,14]
[334389431,1723021850014,-151.0,0.00033,7]
[334389432,1723021850024,-61436.5739025,0.00033,30]
[334389456,1723022609231,2068.6,0.00014009,2]
[334389511,1723023032493,-192.391567,0.00014247,2]
[334389512,1723023032511,-140.584364,0.00014247,2]
[334389513,1723023032524,-21.916996,0.00014247,2]
[334389514,1723023032534,-3000.0,0.00016629,2]
[334389515,1723023032546,-300.0,0.00018446,2]
[334389516,1723023032556,-1867.65142729,0.00018447,2]
[334389517,1723023032569,-2028.89952765,0.00018447,2]
[334389518,1723023032583,-3799.58163071,0.00018447,2]
[334389520,1723023032594,-2163.23532979,0.00019139,2]
[334389522,1723023032604,-445.18903033,0.00019155,2]
[334389526,1723023032626,-1694.63842548,0.00019155,2]
[334389528,1723023032636,-1163.20555821,0.00019451,2]
[334389530,1723023032647,-218.9783914,0.00019514,2]
[334389532,1723023032658,-156.40122441,0.0002,2]
[334389533,1723023032668,-222.642925,0.00020029,2]
[334389534,1723023032678,-222.642925,0.00020084,2]
[334389535,1723023032690,-222.642925,0.00020139,2]
[334389536,1723023032700,-222.642925,0.00020194,2]
[334389537,1723023032710,-222.642925,0.00020249,2]
[334389538,1723023032721,-222.642925,0.00020304,2]
[334389539,1723023032731,-222.642925,0.00020359,2]
[334389540,1723023032742,-222.642925,0.00020414,2]
[334389541,1723023032757,-222.642925,0.00020469,2]
[334389542,1723023032767,-222.642925,0.00020524,2]
[334389543,1723023032777,-222.642925,0.00020579,2]
[334389544,1723023032787,-46.9042255,0.00020634,2]
[334389545,1723023032801,-175.7386995,0.00020634,2]
[334389546,1723023032811,-222.642925,0.00020689,2]
[334389547,1723023032821,-41.1833755,0.00020707,2]
[334389735,1723023040540,-151.2081915,0.00020707,2]
[334389737,1723023040550,-222.642925,0.00020743,2]
[334389739,1723023040560,-222.642925,0.00020798,2]
[334389741,1723023040570,-222.642925,0.00020853,2]
[334389743,1723023040580,-222.642925,0.00020908,2]
[334389745,1723023040589,-222.642925,0.00020963,2]
[334389747,1723023040600,-437.97932699,0.00021,2]
[334389749,1723023040610,-222.642925,0.00021018,2]
[334389751,1723023040620,-222.642925,0.00021073,2]
[334389754,1723023040631,-173.053872,0.00021448,2]
[334389756,1723023040642,-448.23124766,0.00021492,2]
[334389758,1723023040653,-24900.0,0.00021562,2]
[334389760,1723023040664,-154.65072461,0.00021591,2]
[334389762,1723023040676,-154.65203293,0.00024,2]
[334389764,1723023040687,-154.77557542,0.00025,2]
[334389766,1723023040698,-402.49527553,0.00026569,2]
[334389769,1723023040708,-881.79875023,0.00026579,2]
[334389771,1723023040718,-154.98358091,0.00026579,2]
[334389773,1723023040728,-1363.69574407,0.00026599,2]
[334389775,1723023040737,-234.11453186,0.00026649,2]
[334389777,1723023040747,-192.391567,0.00027167,2]
[334389779,1723023040760,-225.0,0.0003,2]
[334389781,1723023040769,-284.0,0.0003,2]
[334389783,1723023040779,-174.0,0.0003,2]
[334389785,1723023040789,-200.0,0.00030137,2]
[334389787,1723023040799,-225.0,0.00030411,2]
[334389789,1723023040812,-174.0,0.00030411,2]
[334389791,1723023040823,-191.8,0.0003063,120]
[334389793,1723023040834,-194.253923,0.00031507,120]
[334389796,1723023040847,-225.0,0.00031644,2]
[334389798,1723023040858,-174.0,0.00031644,2]
[334389800,1723023040868,-1000.0,0.00032,32]
[334389802,1723023040880,-4772.79286968,0.00032,30]
[334389805,1723023040893,-150.0,0.00032175,2]
[334389807,1723023040903,-507.0,0.00032175,2]
[334389809,1723023040913,-1410.0,0.00032175,2]
[334389811,1723023040924,-213.56714725,0.00032676,2]
[334389813,1723023040935,-22385.2347295,0.00032766,4]
[334389815,1723023040946,-500.0,0.00032775,2]
[334389817,1723023040956,-155.36182597,0.00032775,2]
[334389819,1723023040967,-500.0,0.00032775,2]
[334389821,1723023040981,-500.0,0.00032775,2]
[334389823,1723023040992,-195.08191824,0.00032775,2]
[334389825,1723023041003,-500.0,0.00032775,2]
[334389827,1723023041018,-500.0,0.00032775,2]
[334389829,1723023041027,-500.0,0.00032775,2]
[334389831,1723023041036,-500.0,0.00032775,2]
[334389833,1723023041048,-54782.04195563,0.00032776,5]
[334389835,1723023041058,-213.56714725,0.00032776,2]
[334389837,1723023041068,-2222.93172397,0.00032776,2]
[334389839,1723023041077,-3000.0,0.000328,13]
[334389841,1723023041087,-2263.62273515,0.0003281,13]
[334390117,1723023043606,-448.2312476,0.00023691,2]
[334390119,1723023043616,-1877.9687524,0.00032766,3]
[334390466,1723023046976,-448.2312476,0.0002589,2]
[334390468,1723023046986,-299.3612476,0.00032766,3]
[334390470,1723023046996,-636.4075048,0.0003281,13]
[334391015,1723023647065,2025.05135045,0.00014246,4]
[334391024,1723023926714,-194.253923,0.00031507,120]
[334391025,1723023926744,-300.0,0.0003281,120]
[334391026,1723023926833,-126.316077,0.00033,120]
[334391028,1723024167158,-171.951565,0.00014247,2]
[334391029,1723024167183,-76.65698634,0.00014247,2]
[334391099,1723024232727,-85.84437366,0.00014247,2]
[334391101,1723024232737,-2138.17175595,0.00019177,2]
[334391103,1723024232747,-1426.67691061,0.00019177,2]
[334391105,1723024232756,-163.25864655,0.00019256,2]
[334391107,1723024232767,-215.10808716,0.0002,2]
[334391110,1723024232781,-171.951565,0.00020707,2]
[334391112,1723024232792,-881.47696693,0.0002217,2]
[334391114,1723024232802,-191.2672789,0.00023257,2]
[334391116,1723024232811,-402.49527553,0.00026569,2]
[334391118,1723024232821,-76.04913971,0.00027167,2]
[334391357,1723024243654,-555.30885481,0.00026589,2]
[334391358,1723024243666,-808.38688926,0.00026589,2]
[334391359,1723024243676,-95.90242529,0.00027167,2]
[334391360,1723024243685,-1518.68452334,0.00027873,2]
[334391661,1723025432011,-162.50136,0.00014247,2]
[334391663,1723025432022,-163.338818,0.00014247,2]
[334391665,1723025432031,-300.0,0.00014476,2]
[334391666,1723025432041,-10842.559822,0.00014477,2]
[334391729,1723025437961,-14057.440178,0.00014477,2]
[334391731,1723025437971,-162.391646,0.00015086,2]
[334391733,1723025437980,-162.391646,0.00015164,2]
[334391735,1723025437990,-162.391646,0.00015243,2]
[334391737,1723025437999,-162.391646,0.00015322,2]
[334391739,1723025438009,-162.391646,0.000154,2]
[334391741,1723025438018,-162.391646,0.00015479,2]
[334391743,1723025438028,-162.391646,0.00015557,2]
[334391745,1723025438038,-162.391646,0.00015636,2]
[334391747,1723025438047,-42341.71391136,0.00015709,2]
[334391749,1723025438056,-162.391646,0.00015715,2]
[334391751,1723025438066,-162.391646,0.00015793,2]
[334391753,1723025438077,-162.391646,0.00015872,2]
[334391754,1723025438087,-420.0,0.00015923,2]
[334391755,1723025438096,-173.053872,0.00019178,2]
[334391756,1723025438106,-1438.29474334,0.00019256,2]
[334391757,1723025438116,-163.338818,0.00020707,2]
[334391758,1723025438125,-7775.14481469,0.00021589,2]
[334391759,1723025438136,-154.68290005,0.00024,2]
[334391760,1723025438145,-336.94407013,0.00025,2]
[334391761,1723025438156,-154.77557542,0.00025,2]
[334391762,1723025438165,-1831.29,0.00025,2]
[334391763,1723025438175,-1363.69574407,0.00026583,2]
[334391764,1723025438185,-234.11453186,0.00026839,2]
[334391765,1723025438194,-881.79875023,0.00026848,2]
[334391766,1723025438203,-163.338818,0.00027167,2]
[334391767,1723025438214,-213.56714725,0.00027763,2]
[334391768,1723025438223,-790.72,0.00027842,3]
[334391769,1723025438234,-2046.87,0.00027842,3]
[334391770,1723025438244,-1705.72,0.00027842,3]
[334391772,1723025438254,-155.36182597,0.00027851,2]
[334391773,1723025438263,-500.0,0.00027851,2]
[334391774,1723025438273,-343.51086694,0.00027851,2]
[334391776,1723025438283,-500.0,0.00027851,2]
[334391778,1723025438292,-500.0,0.00027851,2]
[334391780,1723025438301,-500.0,0.00027851,2]
[334391781,1723025438311,-500.0,0.00027851,2]
[334391783,1723025438321,-500.0,0.00027851,2]
[334391785,1723025438331,-22103.55153562,0.00027852,21]
[334391787,1723025438340,-22385.2347295,0.00027852,3]
[334391789,1723025438349,-10488.56500567,0.00027873,2]
[334391791,1723025438359,-1897.29247092,0.00027873,2]
[334391793,1723025438368,-9421.35258831,0.00027873,2]
[334391795,1723025438377,-1626.30244547,0.00027873,2]
[334391797,1723025438388,-225.0,0.0003,2]
[334391799,1723025438397,-284.0,0.0003,2]
[334391801,1723025438407,-174.0,0.0003,2]
[334391803,1723025438416,-150.112233,0.000301,6]
[334391805,1723025438425,-200.0,0.00030137,2]
[334391807,1723025438435,-225.0,0.00030411,2]
[334391809,1723025438445,-174.0,0.00030411,2]
[334391811,1723025438454,-153.0,0.00030712,2]
[334391813,1723025438463,-150.0,0.00031306,4]
[334391815,1723025438473,-153.0,0.00031507,2]
[334391817,1723025438482,-153.0,0.00031507,2]
[334391819,1723025438492,-153.0,0.00031507,2]
[334391821,1723025438502,-194.253923,0.00031507,120]
[334391823,1723025438512,-225.0,0.00031644,2]
[334391825,1723025438521,-174.0,0.00031644,2]
[334391827,1723025438531,-153.2214191,0.00031781,2]
[334391829,1723025438540,-294.4233554,0.00031781,2]
[334391831,1723025438550,-153.0,0.00031781,2]
[334391833,1723025438559,-414.2299132,0.00031781,2]
[334391835,1723025438569,-207.1149566,0.00031781,2]
[334391837,1723025438579,-294.4233554,0.00031781,2]
[334391839,1723025438588,-306.0,0.00031781,2]
[334391841,1723025438598,-207.1149566,0.00031781,2]
[334391843,1723025438608,-22385.2347295,0.0003199,4]
[334391845,1723025438617,-1000.0,0.00032,3]
[334391847,1723025438627,-451.84605212,0.00032,30]
[334391849,1723025438637,-1000.0,0.00032,32]
[334391851,1723025438646,-153.0,0.00032055,2]
[334391853,1723025438656,-514.9643628,0.00032055,2]
[334391855,1723025438666,-2602.09617,0.00032327,2]
[334391857,1723025438675,-2190.055433,0.00032327,2]
[334391858,1723025438684,-194.971646,0.00032327,2]
[334391859,1723025438693,-153.0,0.00032329,2]
[334391860,1723025438702,-153.0,0.00032329,2]
[334391861,1723025438712,-425.5958709,0.00032384,2]
[334391862,1723025438725,-409.4400484,0.00032384,2]
[334391863,1723025438734,-153.0,0.00032384,2]
[334391864,1723025438743,-153.0,0.00032384,2]
[334391865,1723025438753,-153.0,0.00032411,2]
[334391866,1723025438764,-207.1149566,0.00032411,2]
[334391867,1723025438773,-294.4233554,0.00032411,2]
[334391868,1723025438783,-153.0,0.00032411,2]
[334391869,1723025438792,-237.976,0.0003245,2]
[334391870,1723025438803,-150.0,0.0003245,2]
[334391871,1723025438813,-507.0,0.0003245,2]
[334391872,1723025438826,-1410.0,0.0003245,2]
[334391873,1723025438839,-279.8693207,0.00032464,2]
[334391874,1723025438852,-207.1149566,0.00032548,2]
[334391875,1723025438861,-153.0,0.00032548,2]
[334391876,1723025438871,-414.2299132,0.00032548,2]
[334391877,1723025438883,-294.4233554,0.00032548,2]
[334391878,1723025438893,-294.4233554,0.00032548,2]
[334391879,1723025438905,-294.4233554,0.00032548,2]
[334391880,1723025438915,-2602.09617,0.00032731,2]
[334391881,1723025438924,-2190.055433,0.00032731,2]
[334391882,1723025438933,-22385.2347295,0.00032756,4]
[334391883,1723025438943,-54782.04195563,0.00032766,5]
[334391884,1723025438952,-213.56714725,0.00032776,2]
[334391885,1723025438961,-2222.93172397,0.00032776,2]
[334391886,1723025438970,-3000.0,0.000328,13]
[334391887,1723025438979,-3000.0,0.0003281,13]
[334391888,1723025438988,-3000.0,0.0003282,13]
[334391889,1723025438998,-3000.0,0.0003283,13]
[334391890,1723025439008,-3000.0,0.0003284,13]
[334391891,1723025439018,-3000.0,0.0003285,13]
[334391892,1723025439028,-22385.2347295,0.0003285,4]
[334391893,1723025439040,-150.0,0.00032855,2]
[334391894,1723025439050,-3000.0,0.0003286,13]
[334391895,1723025439060,-116917.40344149,0.00032866,4]
[334391915,1723025440954,-39779.23966551,0.00032866,4]
[334391916,1723025440965,-3000.0,0.0003287,13]
[334391917,1723025440976,-2000.0,0.00032875,14]
[334391918,1723025440987,-1164.37104891,0.00032875,2]
[334391919,1723025440997,-160.50030422,0.00032875,10]
[334391920,1723025441007,-500.0,0.00032876,14]
[334391921,1723025441019,-500.0,0.00032876,14]
[334391922,1723025441029,-500.0,0.00032876,14]
[334391923,1723025441041,-500.0,0.00032876,14]
[334391924,1723025441051,-500.0,0.00032876,14]
[334391925,1723025441062,-500.0,0.00032876,14]
[334391926,1723025441072,-554.19381294,0.00032876,14]
[334391927,1723025441087,-500.0,0.00032876,14]
[334391928,1723025441098,-500.0,0.00032876,2]
[334391929,1723025441107,-501.27436056,0.00032876,14]
[334391930,1723025441118,-151.0,0.00032876,7]
[334391931,1723025441128,-151.0,0.00032876,7]
[334391932,1723025441139,-151.0,0.00032876,7]
[334391933,1723025441149,-151.0,0.00032876,7]
[334391934,1723025441158,-198.237877,0.00032876,7]
[334391935,1723025441170,-500.0,0.00032876,14]
[334391936,1723025441180,-500.0,0.00032876,14]
[334391937,1723025441190,-501.96266369,0.00032876,14]
[334391938,1723025441201,-552.6,0.00032876,14]
[334391939,1723025441212,-500.0,0.00032876,14]
[334391940,1723025441222,-500.0,0.00032876,14]
[334391941,1723025441234,-600.60629249,0.00032876,14]
[334391942,1723025441244,-500.0,0.00032876,14]
[334391943,1723025441253,-500.0,0.00032876,14]
[334391944,1723025441262,-500.55294746,0.00032876,14]
[334391945,1723025441273,-986.31,0.00032876,14]
[334391946,1723025441283,-500.0,0.00032876,14]
[334391947,1723025441293,-2387.52,0.00032876,14]
[334391948,1723025441304,-946.84,0.00032876,14]
[334391949,1723025441314,-500.0,0.00032876,14]